[Event "Late-Titled-Tuesday-Blitz-May-28-2024"]
[Site "Chess.com"]
[Date "2024.05.28"]
[Round "1"]
[White "chess_sharparchitect"]
[Black "IamSchrodingersCat"]
[Result "0-1"]
[WhiteElo "2370"]
[BlackElo "2658"]
[TimeControl "180+1"]
[EndTime "14:06:58 PDT"]
[Termination "IamSchrodingersCat won on time"]

1. c4 {[%clk 0:02:58.2]} 1... Nf6 {[%clk 0:03:00]} 2. Nc3 {[%clk 0:02:55.7]}
2... g6 {[%clk 0:03:00.5]} 3. e4 {[%clk 0:02:50.7]} 3... d6 {[%clk 0:03:00.4]}
4. d4 {[%clk 0:02:50.1]} 4... Bg7 {[%clk 0:03:00.5]} 5. h3 {[%clk 0:02:50.5]}
5... O-O {[%clk 0:03:00.4]} 6. Be3 {[%clk 0:02:50.6]} 6... Na6 {[%clk
0:03:00.3]} 7. Nge2 {[%clk 0:02:38.4]} 7... e5 {[%clk 0:03:00.3]} 8. d5 {[%clk
0:02:24.1]} 8... Nc5 {[%clk 0:02:59.8]} 9. Qc2 {[%clk 0:02:21.7]} 9... a5 {[%clk
0:02:55.2]} 10. g4 {[%clk 0:02:14.6]} 10... h5 {[%clk 0:02:49.9]} 11. f3 {[%clk
0:02:07.5]} 11... Nh7 {[%clk 0:02:48.8]} 12. O-O-O {[%clk 0:01:53.1]} 12... h4
{[%clk 0:02:37.3]} 13. f4 {[%clk 0:01:37.7]} 13... exf4 {[%clk 0:02:35.7]} 14.
Nxf4 {[%clk 0:01:35.4]} 14... Ng5 {[%clk 0:02:30.5]} 15. Bd3 {[%clk 0:01:22.9]}
15... Re8 {[%clk 0:02:24.9]} 16. Rhf1 {[%clk 0:00:55.8]} 16... Qe7 {[%clk
0:02:08.4]} 17. Bxc5 {[%clk 0:00:40.9]} 17... dxc5 {[%clk 0:02:09.3]} 18. Rde1
{[%clk 0:00:41]} 18... Be5 {[%clk 0:01:55.2]} 19. Ng2 {[%clk 0:00:36.8]} 19...
Nxh3 {[%clk 0:01:49.7]} 20. Rh1 {[%clk 0:00:34.1]} 20... Nf4 {[%clk 0:01:44.9]}
21. Nxh4 {[%clk 0:00:33.4]} 21... Kg7 {[%clk 0:01:28.8]} 22. Kb1 {[%clk
0:00:26]} 22... Rh8 {[%clk 0:01:24.1]} 23. d6 {[%clk 0:00:17.5]} 23... cxd6
{[%clk 0:01:20.7]} 24. Nf3 {[%clk 0:00:17.6]} 24... Bxg4 {[%clk 0:01:20.2]} 25.
Nxe5 {[%clk 0:00:16.5]} 25... Qxe5 {[%clk 0:01:21.1]} 26. Nd5 {[%clk 0:00:15.9]}
26... Nxd5 {[%clk 0:01:18.7]} 27. exd5 {[%clk 0:00:15.4]} 27... Rxh1 {[%clk
0:01:17.2]} 28. Rxh1 {[%clk 0:00:14.7]} 28... Rh8 {[%clk 0:01:17.6]} 29. Rf1
{[%clk 0:00:13.2]} 29... Rh2 {[%clk 0:01:14.7]} 30. Qc1 {[%clk 0:00:09.3]} 30...
Qd4 {[%clk 0:01:10.7]} 31. Qc3 {[%clk 0:00:04.6]} 31... Qxc3 {[%clk 0:01:03.2]}
32. bxc3 {[%clk 0:00:05.5]} 32... Rd2 {[%clk 0:01:03]} 33. Bc2 {[%clk
0:00:05.3]} 33... f5 {[%clk 0:00:57.3]} 34. Kc1 {[%clk 0:00:05.3]} 34... Rh2
{[%clk 0:00:56.7]} 35. Kb2 {[%clk 0:00:05.1]} 35... Kf6 {[%clk 0:00:54.9]} 36.
Kb3 {[%clk 0:00:05.2]} 36... g5 {[%clk 0:00:54.1]} 37. Bb1 {[%clk 0:00:03]}
37... f4 {[%clk 0:00:51.2]} 38. Ka4 {[%clk 0:00:03.3]} 38... Be2 {[%clk
0:00:51.4]} 39. Re1 {[%clk 0:00:03]} 39... f3 {[%clk 0:00:50.1]} 40. Kxa5 {[%clk
0:00:01.5]} 40... Rh8 {[%clk 0:00:48.1]} 41. Be4 {[%clk 0:00:01]} 41... f2
{[%clk 0:00:47.1]} 42. Rxe2 {[%clk 0:00:01]} 42... f1=Q {[%clk 0:00:47.4]} 0-1

[Event "Late-Titled-Tuesday-Blitz-May-28-2024"]
[Site "Chess.com"]
[Date "2024.05.28"]
[Round "1"]
[White "el008"]
[Black "blueryder"]
[Result "1-0"]
[WhiteElo "2561"]
[BlackElo "2177"]
[TimeControl "180+1"]
[EndTime "14:06:59 PDT"]
[Termination "el008 won on time"]

1. Nf3 {[%clk 0:03:00.9]} 1... Nc6 {[%clk 0:02:59.1]} 2. d4 {[%clk 0:03:00]}
2... d5 {[%clk 0:02:57.9]} 3. g3 {[%clk 0:02:56.1]} 3... Bf5 {[%clk 0:02:56.3]}
4. a3 {[%clk 0:02:52.3]} 4... e6 {[%clk 0:02:56.1]} 5. Bg2 {[%clk 0:02:52.7]}
5... Nf6 {[%clk 0:02:56.2]} 6. O-O {[%clk 0:02:53.3]} 6... Be7 {[%clk
0:02:56.3]} 7. Nbd2 {[%clk 0:02:50.4]} 7... h6 {[%clk 0:02:55.5]} 8. c4 {[%clk
0:02:42.9]} 8... O-O {[%clk 0:02:55]} 9. b3 {[%clk 0:02:39.9]} 9... Ne4 {[%clk
0:02:54.5]} 10. Bb2 {[%clk 0:02:39.9]} 10... Bf6 {[%clk 0:02:51.6]} 11. e3
{[%clk 0:02:37.8]} 11... a6 {[%clk 0:02:48.7]} 12. Nxe4 {[%clk 0:02:37.4]} 12...
Bxe4 {[%clk 0:02:48.1]} 13. Nd2 {[%clk 0:02:27.2]} 13... Bxg2 {[%clk 0:02:46.2]}
14. Kxg2 {[%clk 0:02:28.1]} 14... e5 {[%clk 0:02:41.2]} 15. cxd5 {[%clk
0:02:28.1]} 15... Qxd5+ {[%clk 0:02:39.8]} 16. e4 {[%clk 0:02:28.5]} 16... Qd7
{[%clk 0:02:33.9]} 17. d5 {[%clk 0:02:28.3]} 17... Ne7 {[%clk 0:02:27.4]} 18.
Nc4 {[%clk 0:02:26.7]} 18... Ng6 {[%clk 0:02:26.1]} 19. Na5 {[%clk 0:02:24.4]}
19... Rab8 {[%clk 0:02:23.8]} 20. Rc1 {[%clk 0:02:24]} 20... Be7 {[%clk
0:02:19.3]} 21. b4 {[%clk 0:02:17.7]} 21... f5 {[%clk 0:02:17.1]} 22. Qh5 {[%clk
0:02:09.2]} 22... Kh7 {[%clk 0:02:12.6]} 23. exf5 {[%clk 0:02:02.7]} 23... Rxf5
{[%clk 0:02:11.8]} 24. Qd1 {[%clk 0:01:54.8]} 24... Rbf8 {[%clk 0:01:57.3]} 25.
Nxb7 {[%clk 0:01:51.7]} 25... Rg5 {[%clk 0:01:40.3]} 26. Qc2 {[%clk 0:01:39.5]}
26... Kh8 {[%clk 0:01:35.4]} 27. Kh1 {[%clk 0:01:11.4]} 27... Qxd5+ {[%clk
0:01:30.6]} 28. f3 {[%clk 0:01:01.6]} 28... Qxb7 {[%clk 0:01:09.6]} 29. Qxc7
{[%clk 0:01:01.9]} 29... Qa8 {[%clk 0:00:59.7]} 30. Qc6 {[%clk 0:01:00.6]} 30...
Qxc6 {[%clk 0:00:48.9]} 31. Rxc6 {[%clk 0:01:01.5]} 31... Kh7 {[%clk 0:00:45]}
32. Rxa6 {[%clk 0:01:01.6]} 32... Rgf5 {[%clk 0:00:43.5]} 33. Kg2 {[%clk
0:01:01.3]} 33... h5 {[%clk 0:00:36.4]} 34. Rc6 {[%clk 0:01:00.9]} 34... h4
{[%clk 0:00:36]} 35. Bc3 {[%clk 0:00:58.5]} 35... h3+ {[%clk 0:00:35.5]} 36.
Kxh3 {[%clk 0:00:59]} 36... Rxf3 {[%clk 0:00:35.7]} 37. Rxf3 {[%clk 0:00:59.2]}
37... Rxf3 {[%clk 0:00:35.2]} 38. a4 {[%clk 0:00:57]} 38... Kh6 {[%clk
0:00:30.4]} 39. a5 {[%clk 0:00:53.1]} 39... Kh5 {[%clk 0:00:30.5]} 40. Kg2
{[%clk 0:00:50.9]} 40... Rd3 {[%clk 0:00:29.4]} 41. a6 {[%clk 0:00:47.7]} 41...
Rd1 {[%clk 0:00:25.2]} 42. a7 {[%clk 0:00:47.1]} 42... Rd8 {[%clk 0:00:16.4]}
43. b5 {[%clk 0:00:47.5]} 43... Nf8 {[%clk 0:00:06.8]} 44. b6 {[%clk 0:00:47.4]}
44... Nd7 {[%clk 0:00:06.9]} 45. b7 {[%clk 0:00:47.9]} 45... Nc5 {[%clk
0:00:03.1]} 46. a8=Q {[%clk 0:00:47.6]} 46... Rxa8 {[%clk 0:00:01.3]} 47. bxa8=Q
{[%clk 0:00:48.5]} 1-0

[Event "Late-Titled-Tuesday-Blitz-May-28-2024"]
[Site "Chess.com"]
[Date "2024.05.28"]
[Round "1"]
[White "WindWhistler11"]
[Black "JohnWhite1952"]
[Result "1-0"]
[WhiteElo "2545"]
[BlackElo "1987"]
[TimeControl "180+1"]
[EndTime "14:07:02 PDT"]
[Termination "WindWhistler11 won by resignation"]

1. Nf3 {[%clk 0:02:57.9]} 1... Nf6 {[%clk 0:02:57.5]} 2. g3 {[%clk 0:02:58.8]}
2... g6 {[%clk 0:02:56.7]} 3. Bg2 {[%clk 0:02:27.6]} 3... Bg7 {[%clk 0:02:55.7]}
4. O-O {[%clk 0:02:28.5]} 4... O-O {[%clk 0:02:55]} 5. c4 {[%clk 0:02:26.9]}
5... c5 {[%clk 0:02:53.9]} 6. Nc3 {[%clk 0:02:20]} 6... Nc6 {[%clk 0:02:52.7]}
7. a3 {[%clk 0:02:17.5]} 7... d6 {[%clk 0:02:44]} 8. Rb1 {[%clk 0:02:17.5]} 8...
Bd7 {[%clk 0:02:41.7]} 9. b4 {[%clk 0:02:14.5]} 9... cxb4 {[%clk 0:02:30.6]} 10.
axb4 {[%clk 0:02:15.4]} 10... a5 {[%clk 0:02:22.6]} 11. b5 {[%clk 0:02:13]}
11... Nb4 {[%clk 0:02:22.1]} 12. Ba3 {[%clk 0:02:11]} 12... d5 {[%clk
0:01:53.4]} 13. Bxb4 {[%clk 0:01:58.6]} 13... axb4 {[%clk 0:01:52.5]} 14. Rxb4
{[%clk 0:01:59.5]} 14... dxc4 {[%clk 0:01:41.5]} 15. Rxc4 {[%clk 0:01:59.8]}
15... Qa5 {[%clk 0:01:33.2]} 16. Ra4 {[%clk 0:01:42.4]} 16... Qb6 {[%clk
0:01:28.7]} 17. Rb4 {[%clk 0:01:42.9]} 17... Ra5 {[%clk 0:01:18.1]} 18. Qb1
{[%clk 0:01:35.5]} 18... Rfa8 {[%clk 0:01:11.1]} 19. Ne5 {[%clk 0:01:34.3]}
19... Bf5 {[%clk 0:00:57.6]} 20. Nc4 {[%clk 0:01:22.1]} 20... Qd8 {[%clk
0:00:38.5]} 21. e4 {[%clk 0:01:19.8]} 21... Ra1 {[%clk 0:00:28.9]} 22. Qc2
{[%clk 0:00:58.2]} 22... Rxf1+ {[%clk 0:00:28]} 23. Bxf1 {[%clk 0:00:57.5]}
23... Be6 {[%clk 0:00:28.1]} 24. Ne3 {[%clk 0:00:48.7]} 24... Ra1 {[%clk
0:00:27.4]} 25. Rb1 {[%clk 0:00:47.5]} 25... Rxb1 {[%clk 0:00:25.1]} 26. Nxb1
{[%clk 0:00:47.8]} 26... Qxd2 {[%clk 0:00:25.9]} 27. Nxd2 {[%clk 0:00:47.7]}
27... h5 {[%clk 0:00:20.1]} 28. h4 {[%clk 0:00:47.2]} 28... Kh7 {[%clk
0:00:19.3]} 29. Bc4 {[%clk 0:00:46.8]} 29... Bd7 {[%clk 0:00:18.4]} 30. Nf3
{[%clk 0:00:46.3]} 30... e6 {[%clk 0:00:15.4]} 31. Ng5+ {[%clk 0:00:45.9]} 31...
Kg8 {[%clk 0:00:15.4]} 32. Qa2 {[%clk 0:00:45.5]} 32... Kf8 {[%clk 0:00:11.7]}
33. Qa8+ {[%clk 0:00:45.6]} 33... Ke7 {[%clk 0:00:12.3]} 34. Qxb7 {[%clk
0:00:45.9]} 34... Ne8 {[%clk 0:00:10.7]} 35. Nxf7 {[%clk 0:00:44.4]} 35... Nd6
{[%clk 0:00:07.1]} 36. Nxd6 {[%clk 0:00:43.9]} 36... Kxd6 {[%clk 0:00:07.6]} 37.
Bb3 {[%clk 0:00:41.9]} 1-0

[Event "Late-Titled-Tuesday-Blitz-May-28-2024"]
[Site "Chess.com"]
[Date "2024.05.28"]
[Round "1"]
[White "Karttunen"]
[Black "unbreakablepawn35"]
[Result "1-0"]
[WhiteElo "2649"]
[BlackElo "2358"]
[TimeControl "180+1"]
[EndTime "14:07:08 PDT"]
[Termination "Karttunen won by resignation"]

1. e4 {[%clk 0:03:00.2]} 1... d5 {[%clk 0:02:58.6]} 2. exd5 {[%clk 0:03:00]}
2... Qxd5 {[%clk 0:02:59.5]} 3. Nc3 {[%clk 0:02:57.2]} 3... Qd8 {[%clk
0:02:59.9]} 4. d4 {[%clk 0:02:57.2]} 4... Nf6 {[%clk 0:03:00.3]} 5. Nf3 {[%clk
0:02:56.9]} 5... g6 {[%clk 0:03:00.6]} 6. Bc4 {[%clk 0:02:56.7]} 6... Bg7 {[%clk
0:03:01.1]} 7. Ne5 {[%clk 0:02:57.1]} 7... O-O {[%clk 0:03:01.1]} 8. Be3 {[%clk
0:02:55.3]} 8... a6 {[%clk 0:03:00.9]} 9. a4 {[%clk 0:02:54.1]} 9... e6 {[%clk
0:02:59.7]} 10. h4 {[%clk 0:02:45.4]} 10... Nbd7 {[%clk 0:02:52]} 11. f4 {[%clk
0:02:42]} 11... Nxe5 {[%clk 0:02:49]} 12. fxe5 {[%clk 0:02:41.8]} 12... Nd5
{[%clk 0:02:49.1]} 13. Bg5 {[%clk 0:02:23.5]} 13... f6 {[%clk 0:02:48.3]} 14.
exf6 {[%clk 0:02:20.2]} 14... Bxf6 {[%clk 0:02:47.9]} 15. Ne4 {[%clk 0:02:06.7]}
15... Bxg5 {[%clk 0:01:59.4]} 16. hxg5 {[%clk 0:02:06.3]} 16... Qe7 {[%clk
0:01:34.3]} 17. Qe2 {[%clk 0:01:52.3]} 17... Rf7 {[%clk 0:00:47.7]} 18. O-O-O
{[%clk 0:01:46.3]} 18... Bd7 {[%clk 0:00:44.5]} 19. Rde1 {[%clk 0:01:39.7]}
19... Nf4 {[%clk 0:00:26.3]} 20. Qd2 {[%clk 0:01:34.7]} 20... Raf8 {[%clk
0:00:26]} 21. Nf6+ {[%clk 0:01:28.3]} 21... Rxf6 {[%clk 0:00:26.4]} 22. gxf6
{[%clk 0:01:29.1]} 22... Qxf6 {[%clk 0:00:27.2]} 23. Rhf1 {[%clk 0:01:25.8]}
23... Qh4 {[%clk 0:00:17.1]} 24. Kb1 {[%clk 0:01:03.8]} 24... g5 {[%clk
0:00:10.1]} 25. g3 {[%clk 0:00:56.4]} 25... Qxg3 {[%clk 0:00:10]} 26. Rg1 {[%clk
0:00:56.1]} 26... Qh4 {[%clk 0:00:10.2]} 27. Rh1 {[%clk 0:00:53.7]} 27... Qg4
{[%clk 0:00:10.5]} 28. Reg1 {[%clk 0:00:53.3]} 28... Qf5 {[%clk 0:00:10.5]} 29.
Rh5 {[%clk 0:00:47.6]} 29... Nxh5 {[%clk 0:00:09.9]} 30. Rxg5+ {[%clk
0:00:47.7]} 30... Ng7 {[%clk 0:00:09.2]} 31. Rxf5 {[%clk 0:00:47.3]} 31... Rxf5
{[%clk 0:00:09.3]} 32. d5 {[%clk 0:00:47.9]} 32... exd5 {[%clk 0:00:08.9]} 33.
Bxd5+ {[%clk 0:00:47.5]} 33... Kf8 {[%clk 0:00:08.3]} 34. Bxb7 {[%clk
0:00:46.8]} 34... Be6 {[%clk 0:00:07.2]} 35. b3 {[%clk 0:00:46.6]} 35... Nh5
{[%clk 0:00:05.8]} 36. Qd8+ {[%clk 0:00:46.3]} 36... Kf7 {[%clk 0:00:06.4]} 37.
Qxc7+ {[%clk 0:00:46.3]} 37... Kf6 {[%clk 0:00:07.1]} 38. Qxh7 {[%clk
0:00:45.4]} 38... Nf4 {[%clk 0:00:06.8]} 39. Qh8+ {[%clk 0:00:45.1]} 39... Kf7
{[%clk 0:00:06.9]} 40. Bxa6 {[%clk 0:00:43.2]} 40... Nd5 {[%clk 0:00:05.4]} 41.
Bc4 {[%clk 0:00:41.4]} 41... Ne7 {[%clk 0:00:01.7]} 42. Qh7+ {[%clk 0:00:40.6]}
42... Kf6 {[%clk 0:00:01.8]} 43. Qh6+ {[%clk 0:00:40.5]} 43... Ng6 {[%clk
0:00:02.3]} 44. Bxe6 {[%clk 0:00:40.6]} 44... Rf1+ {[%clk 0:00:01.3]} 45. Kb2
{[%clk 0:00:40.4]} 1-0

[Event "Late-Titled-Tuesday-Blitz-May-28-2024"]
[Site "Chess.com"]
[Date "2024.05.28"]
[Round "1"]
[White "MikeSailer"]
[Black "Bilan_Danila"]
[Result "0-1"]
[WhiteElo "2113"]
[BlackElo "2551"]
[TimeControl "180+1"]
[EndTime "14:07:08 PDT"]
[Termination "Bilan_Danila won by resignation"]

1. d4 {[%clk 0:02:55.1]} 1... d5 {[%clk 0:02:59.6]} 2. Bf4 {[%clk 0:02:36.1]}
2... Nf6 {[%clk 0:02:57.2]} 3. e3 {[%clk 0:02:35.5]} 3... c5 {[%clk 0:02:56.4]}
4. Nf3 {[%clk 0:02:34]} 4... Nc6 {[%clk 0:02:56.3]} 5. c3 {[%clk 0:02:31.4]}
5... Bg4 {[%clk 0:02:55.3]} 6. Be2 {[%clk 0:02:28]} 6... e6 {[%clk 0:02:55]} 7.
O-O {[%clk 0:02:25.9]} 7... Bd6 {[%clk 0:02:54.5]} 8. Bg3 {[%clk 0:02:11.1]}
8... Ne4 {[%clk 0:02:45.6]} 9. Nbd2 {[%clk 0:01:59.8]} 9... Nxg3 {[%clk
0:02:42.4]} 10. hxg3 {[%clk 0:01:58.7]} 10... O-O {[%clk 0:02:42.5]} 11. dxc5
{[%clk 0:01:42.5]} 11... Bxc5 {[%clk 0:02:38.1]} 12. b4 {[%clk 0:01:31.5]} 12...
Be7 {[%clk 0:02:28.7]} 13. a3 {[%clk 0:01:30.7]} 13... Rc8 {[%clk 0:01:57.3]}
14. Rc1 {[%clk 0:01:26.2]} 14... a6 {[%clk 0:01:38.6]} 15. c4 {[%clk 0:01:04.5]}
15... Bf6 {[%clk 0:01:28.4]} 16. c5 {[%clk 0:01:02.4]} 16... Bb2 {[%clk
0:01:21.7]} 17. Rb1 {[%clk 0:01:00.5]} 17... Bxa3 {[%clk 0:01:19.1]} 18. Qa4
{[%clk 0:00:57.4]} 18... Bxb4 {[%clk 0:01:02.8]} 19. Rxb4 {[%clk 0:00:57.4]}
19... Nxb4 {[%clk 0:01:02.4]} 20. Qxb4 {[%clk 0:00:57.9]} 20... Bxf3 {[%clk
0:00:56.4]} 21. Nxf3 {[%clk 0:00:54.3]} 21... Qe7 {[%clk 0:00:55.2]} 22. Rc1
{[%clk 0:00:53.5]} 22... Rc7 {[%clk 0:00:53.6]} 23. Nd4 {[%clk 0:00:47.4]} 23...
Rfc8 {[%clk 0:00:52.6]} 24. Nb3 {[%clk 0:00:46.9]} 24... g6 {[%clk 0:00:51.2]}
25. Ra1 {[%clk 0:00:40.2]} 25... Qf6 {[%clk 0:00:45.1]} 26. Rb1 {[%clk
0:00:38.4]} 26... h5 {[%clk 0:00:41.5]} 27. Qb6 {[%clk 0:00:30.5]} 27... Qe7
{[%clk 0:00:33]} 28. Rc1 {[%clk 0:00:25.6]} 28... Rc6 {[%clk 0:00:30.4]} 29. Qb4
{[%clk 0:00:25]} 29... b6 {[%clk 0:00:27.8]} 30. Bxa6 {[%clk 0:00:21.3]} 30...
bxc5 {[%clk 0:00:27.7]} 31. Qb5 {[%clk 0:00:20]} 31... R8c7 {[%clk 0:00:23.8]}
32. Qb8+ {[%clk 0:00:19.7]} 32... Kg7 {[%clk 0:00:17.9]} 33. Bb5 {[%clk
0:00:19.2]} 33... Rc8 {[%clk 0:00:14.6]} 34. Qa7 {[%clk 0:00:17.9]} 34... Qxa7
{[%clk 0:00:13.9]} 0-1

[Event "Late-Titled-Tuesday-Blitz-May-28-2024"]
[Site "Chess.com"]
[Date "2024.05.28"]
[Round "1"]
[White "Shankland"]
[Black "TokChess"]
[Result "1/2-1/2"]
[WhiteElo "2995"]
[BlackElo "2528"]
[TimeControl "180+1"]
[EndTime "14:07:12 PDT"]
[Termination "Game drawn by repetition"]

1. e4 {[%clk 0:03:00.9]} 1... e5 {[%clk 0:02:56.1]} 2. Nf3 {[%clk 0:03:00.8]}
2... Nc6 {[%clk 0:02:55.9]} 3. Bc4 {[%clk 0:03:00.9]} 3... Bc5 {[%clk
0:02:54.8]} 4. c3 {[%clk 0:03:00.9]} 4... Nf6 {[%clk 0:02:53]} 5. d4 {[%clk
0:03:01]} 5... exd4 {[%clk 0:02:52.6]} 6. cxd4 {[%clk 0:03:01.4]} 6... Bb4+
{[%clk 0:02:52.5]} 7. Bd2 {[%clk 0:03:01.8]} 7... Bxd2+ {[%clk 0:02:50.5]} 8.
Nbxd2 {[%clk 0:03:01.5]} 8... d5 {[%clk 0:02:48.9]} 9. exd5 {[%clk 0:03:01.7]}
9... Nxd5 {[%clk 0:02:43.5]} 10. O-O {[%clk 0:03:01.8]} 10... O-O {[%clk
0:02:42.6]} 11. Rc1 {[%clk 0:03:00.7]} 11... Nb6 {[%clk 0:02:34.3]} 12. Bb3
{[%clk 0:03:00.6]} 12... Nxd4 {[%clk 0:02:24.2]} 13. Nxd4 {[%clk 0:03:00]} 13...
Qxd4 {[%clk 0:02:25.1]} 14. Rxc7 {[%clk 0:02:59.6]} 14... Nd5 {[%clk 0:02:05.2]}
15. Rc4 {[%clk 0:02:38.2]} 15... Qxb2 {[%clk 0:01:57]} 16. Ne4 {[%clk
0:02:38.3]} 16... Nf6 {[%clk 0:01:51.8]} 17. Nd6 {[%clk 0:02:32.7]} 17... Be6
{[%clk 0:01:46.6]} 18. Rd4 {[%clk 0:02:23.5]} 18... Bxb3 {[%clk 0:01:44.9]} 19.
axb3 {[%clk 0:02:24.4]} 19... Rad8 {[%clk 0:01:32.5]} 20. Re1 {[%clk 0:02:23.9]}
20... Rd7 {[%clk 0:01:31.5]} 21. Re2 {[%clk 0:02:19.9]} 21... Qa3 {[%clk
0:01:29.5]} 22. Red2 {[%clk 0:02:16.3]} 22... Rxd6 {[%clk 0:01:01.4]} 23. Rxd6
{[%clk 0:02:14.3]} 23... Ne4 {[%clk 0:01:01.6]} 24. g3 {[%clk 0:02:07.6]} 24...
Nxd2 {[%clk 0:00:59.9]} 25. Rxd2 {[%clk 0:02:06.7]} 25... Qc5 {[%clk 0:00:55.8]}
26. Rd7 {[%clk 0:02:05.5]} 26... Qc6 {[%clk 0:00:54.6]} 27. h4 {[%clk 0:02:02]}
27... h6 {[%clk 0:00:50.5]} 28. h5 {[%clk 0:01:53]} 28... a6 {[%clk 0:00:48.1]}
29. Rd6 {[%clk 0:01:49]} 29... Qe4 {[%clk 0:00:45.3]} 30. Rd4 {[%clk 0:01:47.9]}
30... Qc6 {[%clk 0:00:45.2]} 31. Rd6 {[%clk 0:01:32.6]} 31... Qb5 {[%clk
0:00:43.6]} 32. Rd5 {[%clk 0:01:31.6]} 32... Qc6 {[%clk 0:00:39.9]} 33. Kh2
{[%clk 0:01:19.1]} 33... Re8 {[%clk 0:00:39.6]} 34. Qd3 {[%clk 0:01:17.7]} 34...
Qe6 {[%clk 0:00:37.5]} 35. Rd7 {[%clk 0:01:12.4]} 35... Qe2 {[%clk 0:00:33]} 36.
Qxe2 {[%clk 0:01:08.8]} 36... Rxe2 {[%clk 0:00:32.3]} 37. Kg2 {[%clk 0:01:04.9]}
37... Re5 {[%clk 0:00:32.3]} 38. Rxb7 {[%clk 0:01:02.5]} 38... Rxh5 {[%clk
0:00:32]} 39. Rb6 {[%clk 0:00:46.7]} 39... a5 {[%clk 0:00:29.4]} 40. b4 {[%clk
0:00:43.7]} 40... axb4 {[%clk 0:00:30.3]} 41. Rxb4 {[%clk 0:00:43.9]} 41... Re5
{[%clk 0:00:30.3]} 42. g4 {[%clk 0:00:43.1]} 42... g6 {[%clk 0:00:30]} 43. f3
{[%clk 0:00:43.4]} 43... Kg7 {[%clk 0:00:30.1]} 44. Kg3 {[%clk 0:00:43.8]} 44...
h5 {[%clk 0:00:30.3]} 45. gxh5 {[%clk 0:00:43.7]} 45... Rxh5 {[%clk 0:00:30.4]}
46. Ra4 {[%clk 0:00:44]} 46... Rf5 {[%clk 0:00:30.5]} 47. Rb4 {[%clk 0:00:44.4]}
47... g5 {[%clk 0:00:30.9]} 48. Ra4 {[%clk 0:00:44.6]} 48... Kg6 {[%clk
0:00:31.1]} 49. Rb4 {[%clk 0:00:45]} 49... f6 {[%clk 0:00:31.8]} 50. Ra4 {[%clk
0:00:45.3]} 50... Re5 {[%clk 0:00:31.9]} 51. f4 {[%clk 0:00:40.4]} 51... gxf4+
{[%clk 0:00:19.2]} 52. Kxf4 {[%clk 0:00:40.2]} 52... Rf5+ {[%clk 0:00:18.8]} 53.
Kg4 {[%clk 0:00:40.1]} 53... Rg5+ {[%clk 0:00:19.2]} 54. Kf4 {[%clk 0:00:40.3]}
54... Rf5+ {[%clk 0:00:19.5]} 55. Kg4 {[%clk 0:00:40.7]} 55... Rg5+ {[%clk
0:00:20.1]} 56. Kf4 {[%clk 0:00:41.4]} 56... Rf5+ {[%clk 0:00:20.5]} 1/2-1/2

[Event "Late-Titled-Tuesday-Blitz-May-28-2024"]
[Site "Chess.com"]
[Date "2024.05.28"]
[Round "1"]
[White "PhileKhoob"]
[Black "ELPRIMO0O0"]
[Result "0-1"]
[WhiteElo "2305"]
[BlackElo "2605"]
[TimeControl "180+1"]
[EndTime "14:07:12 PDT"]
[Termination "ELPRIMO0O0 won by checkmate"]

1. Nf3 {[%clk 0:02:59.1]} 1... c5 {[%clk 0:02:58.5]} 2. c4 {[%clk 0:02:50.1]}
2... g6 {[%clk 0:02:54.4]} 3. d4 {[%clk 0:02:32.3]} 3... cxd4 {[%clk 0:02:55.3]}
4. Nxd4 {[%clk 0:02:33]} 4... Bg7 {[%clk 0:02:54]} 5. e4 {[%clk 0:02:33.5]} 5...
Nc6 {[%clk 0:02:53.9]} 6. Be3 {[%clk 0:02:32]} 6... Qb6 {[%clk 0:02:52.5]} 7.
Nb5 {[%clk 0:01:59.5]} 7... Qa5+ {[%clk 0:02:50.7]} 8. N1c3 {[%clk 0:01:52.4]}
8... a6 {[%clk 0:02:50.5]} 9. Nd4 {[%clk 0:01:51.4]} 9... Nf6 {[%clk 0:02:45.2]}
10. f3 {[%clk 0:01:46.6]} 10... O-O {[%clk 0:02:40]} 11. Be2 {[%clk 0:01:33.2]}
11... d6 {[%clk 0:02:30.5]} 12. O-O {[%clk 0:01:16.1]} 12... Qb6 {[%clk
0:02:17.6]} 13. Na4 {[%clk 0:00:28.8]} 13... Qc7 {[%clk 0:02:17]} 14. Rc1 {[%clk
0:00:20.2]} 14... Bd7 {[%clk 0:02:07.7]} 15. Nc3 {[%clk 0:00:17.3]} 15... Qa5
{[%clk 0:01:55.6]} 16. Kh1 {[%clk 0:00:12.6]} 16... Rac8 {[%clk 0:01:50.6]} 17.
b3 {[%clk 0:00:12.8]} 17... Rfd8 {[%clk 0:01:15.6]} 18. Nd5 {[%clk 0:00:12.6]}
18... Nxd5 {[%clk 0:01:15.6]} 19. exd5 {[%clk 0:00:10.5]} 19... Nxd4 {[%clk
0:01:12.1]} 20. Bxd4 {[%clk 0:00:11]} 20... Bxd4 {[%clk 0:01:12.3]} 21. Qxd4
{[%clk 0:00:11.9]} 21... Qxa2 {[%clk 0:01:13.1]} 22. Qe3 {[%clk 0:00:12.4]}
22... Re8 {[%clk 0:01:07.4]} 23. Ra1 {[%clk 0:00:08.8]} 23... Qb2 {[%clk
0:01:07.9]} 24. Rfb1 {[%clk 0:00:07.7]} 24... Qf6 {[%clk 0:01:06.9]} 25. Qb6
{[%clk 0:00:07.5]} 25... Rb8 {[%clk 0:01:02]} 26. b4 {[%clk 0:00:06.4]} 26...
Bf5 {[%clk 0:00:59.5]} 27. Re1 {[%clk 0:00:03.9]} 27... Rec8 {[%clk 0:00:50.4]}
28. Rac1 {[%clk 0:00:04.3]} 28... Qb2 {[%clk 0:00:44.9]} 29. Bf1 {[%clk
0:00:04]} 29... Kf8 {[%clk 0:00:42.8]} 30. c5 {[%clk 0:00:04.1]} 30... dxc5
{[%clk 0:00:36.2]} 31. Rxc5 {[%clk 0:00:05]} 31... Rxc5 {[%clk 0:00:36.3]} 32.
Qxc5 {[%clk 0:00:05.3]} 32... Qf6 {[%clk 0:00:36.8]} 33. Qc7 {[%clk 0:00:04.4]}
33... Qd6 {[%clk 0:00:36.3]} 34. Qc3 {[%clk 0:00:02.5]} 34... f6 {[%clk
0:00:31.1]} 35. g4 {[%clk 0:00:02.4]} 35... Rc8 {[%clk 0:00:29.8]} 36. Qd4
{[%clk 0:00:01.6]} 36... Bd7 {[%clk 0:00:29.3]} 37. g5 {[%clk 0:00:02.1]} 37...
Rc2 {[%clk 0:00:24.5]} 38. gxf6 {[%clk 0:00:02.5]} 38... Qxh2# {[%clk
0:00:24.3]} 0-1